bitfinex/quotes_SOLUSD_20251013
["timestamp","ask_amount","ask_price","bid_price","bid_amount"]
[1760398821421,1.41546082,208.46,208.42,17.4730141]
[1760398821630,1.41546082,208.46,208.43,0.68]
[1760398821830,1.41546082,208.47,208.42,40.78303425]
[1760398822136,1.41546082,208.48,208.44,0.68]
[1760398822721,2.08546082,208.47,208.42,41.46303425]
[1760398823038,2.08546082,208.47,208.43,0.68]
[1760398823730,1.41546082,208.49,208.44,41.45912107]
[1760398824136,2.08546082,208.48,208.44,40.77912107]
[1760398824320,1.41546082,208.47,208.44,40.77912107]
[1760398824635,2.08546082,208.47,208.44,40.77912107]
[1760398824839,0.67,208.47,208.44,40.77912107]
[1760398825420,0.67,208.47,208.44,35.98157742]
[1760398826931,10.87647521,208.57,208.45,1.15973135]
[1760398827233,2.21199801,208.49,208.44,36.66157742]
[1760398827427,2.21199801,208.49,208.44,44.46157742]
[1760398827616,2.21199801,208.49,208.44,35.98157742]
[1760398827815,31.67647521,208.54,208.44,44.46157742]
[1760398827816,2.21199801,208.48,208.44,44.46157742]
[1760398828015,2.21199801,208.48,208.45,0.68]
[1760398828736,2.21199801,208.48,208.46,4.79708337]
[1760398828933,2.21199801,208.49,208.46,17.4697918]
[1760398829327,2.21199801,208.5,208.47,0.68]
[1760398829728,2.21199801,208.49,208.46,16.7897918]
[1760398829917,2.21199801,208.49,208.46,17.4697918]
[1760398830941,2.21199801,208.5,208.47,0.68]
[1760398831142,20.8,208.51,208.47,0.68]
[1760398831348,2.21199801,208.5,208.47,0.68]
[1760398831943,14.42827942,208.54,208.46,11.99270843]
[1760398832136,23.01199801,208.54,208.48,0.68]
[1760398832335,14.42619797,208.57,208.51,2.21199801]
[1760398832539,2.50643349,208.56,208.52,0.68]
[1760398832720,4.7184315,208.56,208.52,0.68]
[1760398833128,20.8,208.55,208.53,4.79547307]
[1760398835243,2.88199801,208.54,208.53,4.79547307]
[1760398835636,23.68199801,208.54,208.53,4.79547307]
[1760398836040,23.01199801,208.54,208.53,4.79547307]
[1760398836232,23.68199801,208.54,208.53,4.79547307]
[1760398836641,23.68199801,208.54,208.52,11.98898775]
[1760398836831,2.21199801,208.53,208.52,11.98898775]
[1760398841250,2.88199801,208.53,208.52,11.98898775]
[1760398841433,2.88199801,208.53,208.5,16.78657073]
[1760398841752,2.21199801,208.51,208.5,16.78657073]
[1760398842052,2.88199801,208.51,208.5,16.78657073]
[1760398842226,2.21199801,208.51,208.5,16.78657073]
[1760398842431,23.67199801,208.51,208.48,4.79662317]
[1760398842652,2.21199801,208.49,208.48,4.79662317]
[1760398843056,2.87199801,208.49,208.48,4.79662317]
[1760398843348,2.87199801,208.49,208.47,11.99162445]
[1760398843556,2.21199801,208.48,208.47,11.99162445]
[1760398844555,2.87199801,208.48,208.47,11.99162445]
[1760398844739,20.8,208.47,208.45,4.7973135]
[1760398844942,2.21199801,208.46,208.45,4.7973135]
[1760398845341,2.21199801,208.46,208.45,0.69]
[1760398846860,2.21199801,208.47,208.45,5.4873135]
[1760398847035,2.21199801,208.47,208.46,0.69]
[1760398847846,2.21199801,208.47,208.45,4.7973135]
[1760398848046,2.21199801,208.46,208.45,16.79059726]
[1760398848858,2.93199801,208.46,208.45,16.79059726]
[1760398849359,2.21199801,208.46,208.45,16.79059726]
[1760398850040,2.21199801,208.46,208.45,11.99328376]
[1760398850659,2.21199801,208.46,208.45,11.82612246]
[1760398852384,2.21199801,208.46,208.44,0.65]
[1760398852564,2.21199801,208.45,208.44,0.65]
[1760398853574,2.21199801,208.46,208.45,4.7973135]
[1760398855164,2.21199801,208.46,208.42,24.63978602]
[1760398855475,20.8,208.47,208.44,0.65]
[1760398856493,2.21199801,208.45,208.44,12.64360374]
[1760398856988,2.21199801,208.45,208.44,17.44114739]
[1760398861903,2.93199801,208.45,208.44,16.79114739]
[1760398862103,23.73199801,208.45,208.42,4.79800403]
[1760398862413,20.8,208.42,208.41,16.79338723]
[1760398862691,23.01199801,208.42,208.41,16.79338723]
[1760398864181,23.01199801,208.42,208.41,11.99515299]
[1760398864582,23.73199801,208.42,208.41,11.99515299]
[1760398864773,23.01199801,208.42,208.41,11.99515299]
[1760398864974,20.8,208.42,208.41,12.64515299]
[1760398865197,2.21199801,208.42,208.41,12.64515299]
[1760398866094,2.21199801,208.42,208.41,17.44338723]
[1760398867898,10.87647521,208.52,208.41,52.12655648]
[1760398868203,0.72,208.53,208.41,52.12655648]
[1760398868204,2.21199801,208.48,208.43,16.79220841]
[1760398868497,2.21199801,208.47,208.44,0.65]
[1760398869092,2.21199801,208.47,208.45,0.65]
[1760398869292,2.21199801,208.47,208.46,4.79708337]
[1760398869496,2.21199801,208.47,208.46,5.44708337]
[1760398869885,2.21199801,208.48,208.46,17.4397918]
[1760398871104,20.8,208.5,208.46,0.65]
[1760398871293,2.21199801,208.49,208.46,0.65]
[1760398872095,2.21199801,208.47,208.42,40.78303425]
[1760398872283,2.21199801,208.43,208.42,16.7930141]
[1760398872491,2.21199801,208.44,208.42,17.4730141]
[1760398872698,2.21199801,208.44,208.42,16.7930141]
[1760398872885,2.21199801,208.44,208.42,17.4730141]
[1760398873205,2.21199801,208.43,208.39,16.79543163]
[1760398873411,2.21199801,208.41,208.39,17.47543163]
[1760398873999,2.21199801,208.41,208.39,16.79543163]
[1760398874199,0.72,208.45,208.4,0.68]
[1760398874513,2.21199801,208.42,208.4,0.68]
[1760398875105,23.01199801,208.47,208.42,16.7930141]
[1760398875305,23.01199801,208.47,208.43,0.68]
[1760398875608,23.01199801,208.47,208.44,0.68]
[1760398875989,2.21199801,208.46,208.43,0.68]
[1760398876190,2.21199801,208.46,208.45,4.7973135]
[1760398877910,23.01199801,208.47,208.45,4.7973135]
[1760398878210,20.8,208.47,208.45,5.4773135]
[1760398879810,23.01199801,208.47,208.45,5.4773135]
[1760398881309,14.42966739,208.52,208.45,40.77716478]
[1760398881497,0.72,208.53,208.46,0.68]
[1760398881814,2.21199801,208.51,208.46,0.68]
[1760398882012,2.21199801,208.51,208.47,0.68]
[1760398882209,20.8,208.52,208.47,0.68]
[1760398882415,2.93199801,208.51,208.47,0.68]
[1760398882995,2.21199801,208.48,208.45,40.77716478]
[1760398883215,2.21199801,208.47,208.45,16.79059726]
[1760398883404,2.21199801,208.48,208.45,11.99328376]
[1760398884020,2.21199801,208.46,208.45,11.99328376]
[1760398884317,2.93199801,208.46,208.36,0.1]
[1760398884519,2.21199801,208.39,208.36,0.1]
[1760398884723,0.72,208.39,208.36,0.1]
[1760398884904,2.21199801,208.37,208.36,0.1]
[1760398885919,2.93199801,208.37,208.36,0.1]
[1760398887308,22.28847322,208.37,208.36,0.1]
[1760398887620,22.28847322,208.37,208.32,0.1]
[1760398887621,21.49420143,208.37,208.32,0.1]
[1760398887804,31.67647521,208.34,208.32,0.1]
[1760398888003,2.509,208.31,208.28,0.1]
[1760398888216,1.41772622,208.29,208.28,0.1]
[1760398888418,27.19090488,208.3,208.28,0.1]
[1760398888599,20.8,208.29,208.28,0.1]
[1760398888994,20.8,208.27,208.23,0.1]
[1760398889212,20.8,208.27,208.24,0.68]
[1760398889418,1.41772622,208.25,208.23,0.1]
[1760398889700,20.8,208.27,208.24,0.68]
[1760398889922,20.8,208.27,208.25,0.68]
[1760398890228,2.509,208.31,208.26,0.68]
[1760398890406,20.8,208.28,208.23,16.90817567]
[1760398890598,20.8,208.28,208.27,0.68]
[1760398890801,2.509,208.31,208.27,0.68]
[1760398891110,2.509,208.31,208.27,2.09772622]
[1760398891417,2.509,208.31,208.28,0.68]
[1760398891724,2.509,208.31,208.29,5.4809986]
[1760398891899,2.509,208.31,208.3,0.68]
[1760398892636,3.92672622,208.31,208.29,4.8009986]
[1760398892918,2.509,208.31,208.29,4.8009986]
[1760398893123,3.92672622,208.31,208.29,4.8009986]
[1760398893303,1.41772622,208.3,208.29,4.8009986]
[1760398893507,1.41772622,208.3,208.25,16.80661861]
[1760398893712,1.41772622,208.28,208.25,16.80661861]
[1760398894307,1.41772622,208.28,208.25,17.48661861]
[1760398894506,0.72,208.31,208.25,17.48661861]
[1760398894707,1.41772622,208.29,208.26,0.68]
[1760398894908,20.8,208.33,208.27,0.68]
[1760398895232,20.8,208.33,208.31,1.41772622]
[1760398895530,20.8,208.34,208.3,1.41772622]
[1760398895706,20.8,208.34,208.33,1.41772622]
[1760398895908,10.87647521,208.42,208.33,2.09772622]
[1760398896107,20.8,208.38,208.33,0.68]
[1760398896409,2.13772622,208.37,208.3,0.68]
[1760398896712,2.13772622,208.37,208.31,18.21960803]
[1760398897020,2.13772622,208.37,208.31,16.80188181]
[1760398897217,1.41772622,208.34,208.31,4.80053766]
[1760398897418,4.26479934,208.34,208.31,4.80053766]
[1760398898307,4.26479934,208.34,208.28,12.00295973]
[1760398898627,3.54479934,208.33,208.28,12.00295973]
[1760398898804,4.26479934,208.32,208.28,12.00295973]
[1760398899010,4.26479934,208.32,208.27,4.80145964]
[1760398899011,24.34479934,208.31,208.27,4.80145964]
[1760398899211,0.72,208.3,208.27,4.80145964]
[1760398899421,4.26479934,208.3,208.27,4.80145964]
[1760398899931,4.26479934,208.3,208.25,16.80652789]
[1760398900327,20.8,208.31,208.25,20.35132723]
[1760398900528,24.34479934,208.31,208.25,17.48652789]
[1760398901401,24.34479934,208.31,208.25,4.80192076]
[1760398901402,3.54479934,208.28,208.25,4.80192076]
[1760398901602,4.26479934,208.27,208.25,4.80192076]
[1760398901803,3.54479934,208.26,208.23,0.1]
[1760398902008,24.34479934,208.24,208.23,0.1]
[1760398902513,25.05479934,208.24,208.23,0.1]
[1760398903008,24.34479934,208.24,208.23,0.1]
[1760398903235,20.8,208.24,208.23,4.90238198]
[1760398903618,20.8,208.24,208.23,5.55238198]
[1760398904437,20.8,208.24,208.23,4.90238198]
[1760398904636,3.54479934,208.3,208.23,17.30743693]
[1760398904804,20.8,208.28,208.23,20.85223627]
[1760398905010,20.8,208.27,208.24,0.65]
[1760398905223,20.8,208.27,208.25,4.80192076]
[1760398905423,23.3099309,208.27,208.25,4.80192076]
[1760398906048,26.85473024,208.27,208.25,4.80192076]
[1760398906424,4.25479934,208.26,208.2,0.65]
[1760398906618,3.54479934,208.24,208.2,0.65]
[1760398907513,3.54479934,208.23,208.21,16.80995148]
[1760398908426,23.3099309,208.27,208.21,16.80995148]
[1760398908632,3.54479934,208.24,208.21,16.80995148]
[1760398909230,3.54479934,208.22,208.21,4.80284328]
[1760398909625,24.34479934,208.22,208.21,4.80284328]
[1760398910246,24.34479934,208.22,208.17,16.81262275]
[1760398910444,3.54479934,208.21,208.18,0.67]
[1760398910650,20.8,208.22,208.19,0.44428194]
[1760398910834,24.34479934,208.24,208.19,0.44428194]
[1760398911021,20.8,208.23,208.19,0.44428194]
[1760398911227,3.54479934,208.22,208.19,0.44428194]
[1760398911524,3.54479934,208.22,208.17,16.81262275]
[1760398911928,24.34479934,208.23,208.17,20.35742209]
[1760398912240,3.54479934,208.22,208.17,16.81262275]
[1760398912940,3.54479934,208.22,208.18,0.67]
[1760398913134,24.34479934,208.23,208.17,16.81262275]
[1760398913339,24.34479934,208.23,208.19,0.67]
[1760398913953,20.8,208.23,208.18,3.54479934]
[1760398914128,20.8,208.23,208.2,0.67]
[1760398914451,20.8,208.23,208.22,4.80261262]
[1760398914852,20.8,208.23,208.22,4.57680262]
[1760398915242,24.34479934,208.23,208.22,4.57680262]
[1760398916043,2.5099309,208.27,208.22,17.25333417]
[1760398916246,6.72473024,208.27,208.22,16.58333417]
[1760398916451,6.72473024,208.27,208.22,17.25333417]
[1760398916452,20.8,208.24,208.22,17.25333417]
[1760398916658,3.54479934,208.23,208.22,16.58333417]
[1760398916955,3.54479934,208.23,208.22,4.57680262]
[1760398917130,4.21479934,208.23,208.22,4.57680262]
[1760398917648,3.54479934,208.23,208.22,4.57680262]
[1760398918540,3.54479934,208.23,208.19,16.81113599]
[1760398918851,3.54479934,208.21,208.19,17.48113599]
[1760398919038,20.8,208.24,208.19,17.48113599]
[1760398919246,3.54479934,208.21,208.19,17.48113599]
[1760398919730,3.54479934,208.21,208.17,24.01874052]
[1760398919925,3.54479934,208.21,208.18,0.67]
[1760398920125,3.54479934,208.21,208.19,0.67]
[1760398920548,3.54479934,208.2,208.17,24.01874052]
[1760398920737,3.54479934,208.2,208.18,0.46685374]
[1760398921044,0.67,208.23,208.17,24.01874052]
[1760398921045,3.54479934,208.23,208.17,24.01874052]
[1760398921357,3.54479934,208.22,208.17,24.01874052]
[1760398921856,3.54479934,208.22,208.14,12.01114634]
[1760398922153,3.54479934,208.21,208.15,3.54479934]
[1760398922854,3.54479934,208.21,208.16,0.67]
[1760398923054,3.54479934,208.21,208.17,16.81318153]
[1760398923244,4.21479934,208.21,208.17,16.81318153]
[1760398923558,1.41935693,208.21,208.18,0.67]
[1760398923735,21.47,208.24,208.19,0.67]
[1760398924052,21.47,208.24,208.17,40.83201229]
[1760398924053,1.41935693,208.2,208.17,41.50201229]
[1760398924249,1.41935693,208.2,208.17,40.83201229]
[1760398924451,20.8,208.24,208.18,0.67]
[1760398924974,14.44773531,208.27,208.23,1.41935693]
[1760398925136,14.44773531,208.27,208.24,17.47752976]
[1760398925333,1.41935693,208.27,208.24,16.80752976]
[1760398925552,1.41935693,208.25,208.24,16.80752976]
[1760398925750,1.41935693,208.25,208.16,8.6]
[1760398925751,20.8,208.21,208.14,0.67]
[1760398926054,1.41935693,208.17,208.14,0.67]
[1760398926635,1.41935693,208.17,208.15,0.67]
[1760398926855,1.41935693,208.17,208.16,4.80399692]
[1760398927328,3.54996308,208.17,208.16,16.81398923]
[1760398927530,20.8,208.19,208.16,16.81398923]
[1760398927732,3.54996308,208.17,208.16,17.48398923]
[1760398928256,19.47647521,208.24,208.16,17.48398923]
[1760398928257,20.8,208.2,208.16,17.48398923]
[1760398928436,24.34996308,208.2,208.16,16.81398923]
[1760398928633,24.34996308,208.2,208.16,17.48398923]
[1760398929153,24.34996308,208.2,208.17,0.67]
[1760398929559,3.54996308,208.19,208.18,4.8035354]
[1760398930760,3.54996308,208.19,208.18,4.62070377]
[1760398931135,4.21996308,208.19,208.18,4.62070377]
[1760398931340,3.54996308,208.19,208.18,4.62070377]
[1760398931730,3.54996308,208.19,208.16,12.00999231]
[1760398931731,3.54996308,208.19,208.16,16.81398923]
[1760398931938,4.21996308,208.19,208.16,16.81398923]
[1760398932344,3.54996308,208.18,208.16,16.81398923]
[1760398933750,3.54996308,208.19,208.17,0.67]
[1760398933963,0.69,208.23,208.18,0.67]
[1760398934277,3.54996308,208.21,208.19,0.67]
[1760398934577,20.8,208.24,208.2,0.67]
[1760398934743,3.54996308,208.22,208.2,0.67]
[1760398934939,3.54996308,208.21,208.14,3.54996308]
[1760398935144,3.54996308,208.2,208.18,0.67]
[1760398935344,3.54996308,208.21,208.18,0.67]
[1760398936062,21.49,208.24,208.18,0.67]
[1760398936240,3.54996308,208.21,208.19,16.81156635]
[1760398936660,21.49,208.24,208.19,16.81156635]
[1760398936864,0.69,208.27,208.2,0.67]
[1760398937078,3.54996308,208.25,208.2,0.67]
[1760398937246,3.54996308,208.25,208.21,0.67]
[1760398937764,3.54996308,208.25,208.22,0.67]
[1760398937968,3.54996308,208.25,208.23,4.80238198]
[1760398938353,0.69,208.27,208.23,16.80833693]
[1760398938552,3.54996308,208.24,208.23,16.80833693]
[1760398938946,20.8,208.29,208.23,17.47833693]
[1760398939144,3.54996308,208.27,208.23,17.47833693]
[1760398939365,0.69,208.3,208.24,0.67]
[1760398939551,3.54996308,208.29,208.24,0.67]
[1760398939762,4.23996308,208.29,208.24,0.67]
[1760398939987,3.54996308,208.28,208.25,16.80672268]
[1760398940269,3.54996308,208.29,208.26,0.67]
[1760398940478,6.05960338,208.32,208.27,0.67]
[1760398940650,26.85960338,208.32,208.28,0.67]
[1760398940852,2.5096403,208.32,208.29,0.67]
[1760398941153,3.54996308,208.34,208.3,0.67]
[1760398941339,0.69,208.37,208.31,0.67]
[1760398941542,4.23996308,208.37,208.31,0.67]
[1760398941743,25.03996308,208.37,208.31,0.67]
[1760398941943,3.54996308,208.36,208.31,0.67]
[1760398942173,4.23996308,208.36,208.32,16.80107525]
[1760398942371,3.54996308,208.36,208.32,17.47107525]
[1760398942545,3.54996308,208.36,208.32,16.80107525]
[1760398942751,24.34996308,208.37,208.33,0.67]
[1760398943072,3.54996308,208.35,208.32,16.77257588]
[1760398943368,3.54996308,208.36,208.32,16.77257588]
[1760398943667,3.54996308,208.37,208.32,16.77257588]
[1760398944076,4.23996308,208.37,208.32,12.00076804]
[1760398944952,3.54996308,208.36,208.32,12.67076804]
[1760398945154,4.23996308,208.36,208.32,12.00076804]
[1760398945574,4.23996308,208.36,208.32,12.67076804]
[1760398945779,3.54996308,208.36,208.32,12.67076804]
[1760398946153,3.54996308,208.36,208.32,17.47107525]
[1760398946873,3.54996308,208.33,208.3,4.80054357]
[1760398947078,3.54996308,208.31,208.3,4.80054357]
[1760398947259,4.23996308,208.31,208.3,4.80054357]
[1760398947465,6.34897595,208.31,208.3,4.80054357]
[1760398948174,6.34897595,208.31,208.26,16.80591567]
[1760398948372,6.34897595,208.31,208.26,17.47591567]
[1760398948585,5.65897595,208.29,208.26,17.47591567]
[1760398948878,5.65897595,208.29,208.27,0.67]
[1760398949064,20.8,208.32,208.27,0.67]
[1760398949262,0.69,208.32,208.28,16.80430189]
[1760398949584,5.65897595,208.29,208.28,16.80430189]
[1760398949768,0.69,208.35,208.28,17.47430189]
[1760398949979,5.65897595,208.32,208.28,17.47430189]
[1760398950483,5.65897595,208.31,208.28,17.47430189]
[1760398950880,21.49,208.36,208.29,0.67]
[1760398951183,5.65897595,208.33,208.29,0.585]
[1760398951356,5.65897595,208.33,208.3,16.80268842]
[1760398951555,5.65897595,208.32,208.3,16.80268842]
[1760398951772,0.69,208.33,208.3,16.80268842]
[1760398951773,5.65897595,208.31,208.3,16.80268842]
[1760398951969,6.34897595,208.31,208.28,4.80122911]
[1760398952167,26.45897595,208.29,208.28,4.80122911]
[1760398952569,27.14897595,208.29,208.2,16.81075887]
[1760398952777,5.65897595,208.21,208.2,16.81075887]
[1760398952976,27.14897595,208.21,208.2,4.80307396]
[1760398953276,20.8,208.18,208.13,10.87647521]
[1760398953475,26.45897595,208.18,208.13,11.54647521]
[1760398954282,0.69,208.21,208.14,36.70233558]
[1760398954473,5.65897595,208.17,208.14,36.03233558]
[1760398955074,26.45897595,208.18,208.14,36.70233558]
[1760398955472,26.45897595,208.18,208.15,0.67]
[1760398955789,0.69,208.22,208.16,0.67]
[1760398955963,20.8,208.18,208.16,0.67]
[1760398956161,20.8,208.18,208.17,0.67]
[1760398957970,20.8,208.18,208.17,16.81318153]
[1760398959889,20.8,208.18,208.17,12.00941538]
[1760398961479,0.69,208.21,208.17,12.00941538]
[1760398961679,20.8,208.18,208.17,12.00941538]
[1760398961876,26.45897595,208.18,208.17,12.00941538]
[1760398962068,20.8,208.18,208.17,12.00941538]
[1760398962675,0.69,208.21,208.17,12.00941538]
[1760398962882,20.8,208.18,208.17,12.00941538]
[1760398964570,20.8,208.18,208.13,5.65897595]
[1760398964571,20.8,208.18,208.13,9.27]
[1760398964866,20.8,208.18,208.14,0.71]
[1760398966375,20.8,208.18,208.14,41.54679411]
[1760398966794,20.8,208.18,208.16,4.80399692]
[1760398967000,0.68,208.24,208.17,0.71]
[1760398967297,20.8,208.18,208.17,0.71]
[1760398968398,5.65897595,208.2,208.16,16.81398923]
[1760398968603,5.65897595,208.2,208.16,17.52398923]
[1760398968974,0.68,208.23,208.17,0.71]
[1760398969181,5.65897595,208.26,208.18,5.65897595]
[1760398969389,5.65897595,208.26,208.19,9.27]
[1760398969592,5.65897595,208.25,208.19,9.27]
[1760398969899,5.65897595,208.25,208.19,0.71]
[1760398970084,5.65897595,208.24,208.19,0.71]
[1760398970284,5.65897595,208.24,208.2,0.7]
[1760398970499,0.67,208.26,208.21,17.50995148]
[1760398970500,5.65897595,208.25,208.21,17.50995148]
[1760398970698,0.67,208.26,208.21,17.50995148]
[1760398970903,5.65897595,208.25,208.21,41.52416789]
[1760398971403,5.65897595,208.27,208.22,0.7]
[1760398971898,6.32897595,208.27,208.21,49.38416789]
[1760398972096,5.65897595,208.26,208.21,49.38416789]
[1760398972295,6.32897595,208.26,208.21,50.08416789]
[1760398972509,0.67,208.26,208.21,50.08416789]
[1760398972706,2.50964498,208.33,208.21,49.38416789]
[1760398972886,0.67,208.32,208.22,17.23545116]
[1760398973087,5.65897595,208.3,208.23,0.7]
[1760398973298,5.65897595,208.31,208.24,14.21897595]
[1760398973487,20.8,208.27,208.24,9.26]
[1760398973686,20.8,208.27,208.23,5.65897595]
[1760398973907,20.8,208.27,208.25,0.7]
[1760398974106,0.67,208.31,208.26,4.80169019]
[1760398974288,20.8,208.27,208.26,4.80169019]
[1760398974489,20.8,208.27,208.26,16.80591567]
[1760398974689,5.65897595,208.3,208.26,16.80591567]
[1760398974892,20.8,208.28,208.26,17.50591567]
[1760398975093,0.67,208.31,208.26,17.50591567]
[1760398975297,20.8,208.29,208.26,17.50591567]
[1760398975498,20.8,208.29,208.26,26.06591567]
[1760398975798,0.67,208.34,208.26,25.36591567]
[1760398975996,6.32897595,208.34,208.27,0.7]
[1760398976203,27.12897595,208.34,208.28,25.34430189]
[1760398976502,27.12897595,208.34,208.28,26.04430189]
[1760398976719,5.65897595,208.35,208.29,0.7]
[1760398976907,0.67,208.37,208.3,8.54]
[1760398977111,0.67,208.37,208.31,11.57647521]
[1760398977289,0.67,208.39,208.32,8.54]
[1760398977487,26.45897595,208.38,208.33,0.7]
[1760398977688,0.67,208.41,208.34,9.24]
[1760398977910,5.65897595,208.38,208.33,10.87647521]
[1760398978094,5.65897595,208.38,208.35,16.7986561]
[1760398978296,5.65897595,208.39,208.35,16.7986561]
[1760398978504,6.32897595,208.39,208.35,16.7986561]
[1760398978898,5.65897595,208.39,208.35,17.4986561]
[1760398979496,20.8,208.39,208.35,16.7986561]
[1760398979710,26.45897595,208.39,208.35,17.4986561]
[1760398980291,26.45897595,208.39,208.35,26.0386561]
[1760398980818,0.67,208.41,208.35,50.03673625]
[1760398981001,6.32897595,208.39,208.35,49.33673625]
[1760398981510,5.65897595,208.37,208.35,40.79673625]
[1760398981816,21.47,208.4,208.35,40.79673625]
[1760398982012,5.65897595,208.38,208.35,40.79673625]
[1760398982206,5.65897595,208.39,208.35,40.79673625]
[1760398982408,26.45897595,208.4,208.36,0.7]
[1760398982709,27.12897595,208.4,208.35,40.79673625]
[1760398982911,20.8,208.4,208.37,5.65897595]
[1760398983097,4.51349743,208.44,208.37,5.65897595]
[1760398983098,0.67,208.44,208.38,0.7]
[1760398983298,5.65897595,208.4,208.35,40.79673625]
[1760398983505,0.67,208.39,208.35,40.79673625]
[1760398983813,5.65897595,208.39,208.35,41.49673625]
[1760398983999,5.65897595,208.42,208.36,20.11647521]
[1760398984197,5.65897595,208.42,208.36,11.57647521]
[1760398984403,0.67,208.44,208.37,8.54]
[1760398984611,5.65897595,208.42,208.37,9.24]
[1760398984804,5.65897595,208.42,208.38,0.7]
[1760398985119,20.8,208.43,208.39,16.79543163]
[1760398985313,5.65897595,208.42,208.39,16.79543163]
[1760398985903,5.65897595,208.43,208.4,0.7]
[1760398986107,5.65897595,208.43,208.39,40.7889054]
[1760398986621,5.65897595,208.42,208.39,40.7889054]
[1760398986917,5.65897595,208.42,208.39,41.4889054]
[1760398987098,5.65897595,208.42,208.39,17.49543163]
[1760398988430,0.87,208.45,208.4,0.7]
[1760398988617,0.2,208.45,208.41,0.7]
[1760398988803,5.85897595,208.45,208.42,0.7]
[1760398989126,5.85897595,208.45,208.43,4.79777383]
[1760398989625,0.2,208.45,208.43,4.79777383]
[1760398989799,5.85897595,208.45,208.43,4.79777383]
[1760398990527,0.2,208.45,208.43,5.49777383]
[1760398990737,0.2,208.45,208.43,4.79777383]
[1760398991295,0.2,208.45,208.44,0.7]
[1760398991296,1e-08,208.45,208.44,0.7]
[1760398991618,1e-08,208.45,208.43,9.24]
[1760398991996,1e-08,208.45,208.43,0.7]
[1760398992198,1e-08,208.45,208.43,9.24]
[1760398993023,1e-08,208.45,208.44,4.79754365]
[1760398993401,0.2,208.48,208.44,16.79140279]
[1760398993602,5.65897595,208.47,208.44,16.79140279]
[1760398994719,5.65897595,208.47,208.44,17.50140279]
[1760398994917,0.2,208.48,208.44,16.79140279]
[1760398995116,5.85897595,208.48,208.45,8.54]
[1760398995621,5.85897595,208.48,208.44,17.50140279]
[1760398995824,0.2,208.48,208.44,26.04140279]
[1760398996628,0.2,208.48,208.46,4.79708337]
[1760398997126,20.8,208.47,208.46,4.79708337]
[1760398998533,26.65897595,208.48,208.44,11.99385914]
[1760398998709,5.65897595,208.45,208.44,11.99385914]
[1760398999221,0.69,208.47,208.44,11.99385914]
[1760398999417,3.83555683,208.52,208.45,0.71]
[1760398999601,5.65897595,208.47,208.44,11.99385914]
[1760399000037,6.34897595,208.47,208.44,11.99385914]
[1760399000528,6.34897595,208.46,208.44,11.99385914]
[1760399000731,6.34897595,208.46,208.44,16.79140279]
[1760399001229,5.65897595,208.46,208.44,40.77912107]
[1760399002428,5.65897595,208.45,208.44,11.99385914]
[1760399006238,6.34897595,208.45,208.44,11.99385914]
[1760399006737,20.8,208.43,208.42,4.79800403]
[1760399007041,27.14897595,208.43,208.42,4.79800403]
[1760399008111,27.14897595,208.43,208.4,23.99221895]
[1760399008328,5.65897595,208.41,208.38,16.79623764]
[1760399008518,5.65897595,208.39,208.38,16.79623764]
[1760399008718,0.69,208.44,208.38,16.79623764]
[1760399008924,5.65897595,208.39,208.38,16.79623764]
[1760399009309,3.83709913,208.39,208.38,16.79623764]
[1760399010632,3.83709913,208.39,208.38,11.9973126]
[1760399010822,3.83709913,208.39,208.38,12.7073126]
[1760399011228,0.69,208.46,208.38,12.7073126]
[1760399011442,1.41650986,208.41,208.39,0.71]
[1760399011625,0.69,208.46,208.4,0.71]
[1760399011831,0.69,208.46,208.38,11.9973126]
[1760399011832,1.41650986,208.41,208.38,12.7073126]
[1760399012120,1.41650986,208.41,208.39,0.71]
[1760399012546,1.41650986,208.41,208.38,11.9973126]
[1760399012711,1.41650986,208.41,208.38,17.50623764]
[1760399013114,0.69,208.44,208.38,41.50086284]
[1760399013324,1.41650986,208.4,208.38,41.50086284]
[1760399013633,0.69,208.44,208.38,40.79086284]
[1760399013839,1.41650986,208.4,208.39,0.71]
[1760399014039,3.75706554,208.52,208.4,10.87647521]
[1760399014223,1.41650986,208.43,208.41,0.71]
[1760399014740,1.41650986,208.43,208.42,16.7930141]
[1760399015642,0.69,208.46,208.42,16.7930141]